[Event "*** SCC Grand Prix: Titled Tuesday Blitz"]
[Site "Chess.com"]
[Date "2020.07.21"]
[Round "8"]
[White "ftorodent"]
[Black "Jumbo"]
[Result "0-1"]
[WhiteElo "2643"]
[BlackElo "2855"]
[TimeControl "180+1"]
[EndTime "11:34:04 PDT"]
[Termination "Jumbo won by resignation"]

1. d4 {[%clk 0:03:00.9]} 1... g6 {[%clk 0:02:54.7]} 2. c4 {[%clk 0:03:00.3]}
2... Bg7 {[%clk 0:02:55]} 3. e4 {[%clk 0:03:00.4]} 3... d6 {[%clk 0:02:54.5]} 4.
Nc3 {[%clk 0:03:00.4]} 4... e5 {[%clk 0:02:53.7]} 5. d5 {[%clk 0:02:54.5]} 5...
a5 {[%clk 0:02:48.4]} 6. h4 {[%clk 0:02:51.8]} 6... h5 {[%clk 0:02:47.3]} 7. Nf3
{[%clk 0:02:50.6]} 7... Bh6 {[%clk 0:02:46.4]} 8. Bg5 {[%clk 0:02:40.7]} 8... f6
{[%clk 0:02:45.7]} 9. Bxh6 {[%clk 0:02:38.3]} 9... Nxh6 {[%clk 0:02:46.6]} 10.
Be2 {[%clk 0:02:37]} 10... Na6 {[%clk 0:02:35.2]} 11. Qd2 {[%clk 0:02:34.6]}
11... Nc5 {[%clk 0:02:33.4]} 12. b3 {[%clk 0:02:34.4]} 12... Nf7 {[%clk
0:02:25.8]} 13. Rb1 {[%clk 0:02:24.3]} 13... f5 {[%clk 0:02:25.5]} 14. exf5
{[%clk 0:02:11.8]} 14... Bxf5 {[%clk 0:02:20.4]} 15. Rd1 {[%clk 0:02:11.4]}
15... e4 {[%clk 0:02:10.2]} 16. Nd4 {[%clk 0:01:54]} 16... Ne5 {[%clk 0:02:06]}
17. Qe3 {[%clk 0:01:30.1]} 17... Qf6 {[%clk 0:01:55.6]} 18. Ncb5 {[%clk
0:01:25.2]} 18... Kd7 {[%clk 0:01:55.2]} 19. Kd2 {[%clk 0:00:51.9]} 19... a4
{[%clk 0:01:42.2]} 20. b4 {[%clk 0:00:42.7]} 20... Ncd3 {[%clk 0:01:42.3]} 21.
Bxd3 {[%clk 0:00:42.6]} 21... exd3 {[%clk 0:01:35.7]} 22. Na3 {[%clk 0:00:42.6]}
22... Rhe8 {[%clk 0:01:26.7]} 23. Qf4 {[%clk 0:00:37.6]} 23... Nxc4+ {[%clk
0:01:22.6]} 24. Nxc4 {[%clk 0:00:35.1]} 24... Re4 {[%clk 0:01:23.1]} 25. Qh6
{[%clk 0:00:24.2]} 25... Qxd4 {[%clk 0:01:21.6]} 26. Ne3 {[%clk 0:00:20.7]}
26... Qb2+ {[%clk 0:01:20.8]} 27. Kxd3 {[%clk 0:00:20.9]} 0-1

[Event "*** SCC Grand Prix: Titled Tuesday Blitz"]
[Site "Chess.com"]
[Date "2020.07.21"]
[Round "8"]
[White "anpospan"]
[Black "mirochka"]
[Result "1-0"]
[WhiteElo "2279"]
[BlackElo "2135"]
[TimeControl "180+1"]
[EndTime "11:34:08 PDT"]
[Termination "anpospan won on time"]

1. Nf3 {[%clk 0:03:00.9]} 1... d5 {[%clk 0:02:59.6]} 2. b3 {[%clk 0:03:00.8]}
2... Nf6 {[%clk 0:02:52.9]} 3. Bb2 {[%clk 0:03:00.8]} 3... e6 {[%clk 0:02:43.2]}
4. e3 {[%clk 0:03:00.9]} 4... Be7 {[%clk 0:02:42.8]} 5. Be2 {[%clk 0:03:00.5]}
5... O-O {[%clk 0:02:42.5]} 6. c4 {[%clk 0:03:00]} 6... b6 {[%clk 0:02:39.9]} 7.
d3 {[%clk 0:02:59.8]} 7... Bb7 {[%clk 0:02:40.4]} 8. Qc2 {[%clk 0:02:59.6]} 8...
Nfd7 {[%clk 0:02:30.2]} 9. Nbd2 {[%clk 0:02:59.2]} 9... Bf6 {[%clk 0:02:29.5]}
10. O-O {[%clk 0:02:58.6]} 10... c5 {[%clk 0:02:28.6]} 11. Rac1 {[%clk
0:02:54.1]} 11... Nc6 {[%clk 0:02:27.4]} 12. a3 {[%clk 0:02:52.7]} 12... Rc8
{[%clk 0:02:22]} 13. Qb1 {[%clk 0:02:49.3]} 13... Nce5 {[%clk 0:02:17.7]} 14.
Nxe5 {[%clk 0:02:38.8]} 14... Nxe5 {[%clk 0:02:14.6]} 15. Nf3 {[%clk 0:02:34.2]}
15... Qc7 {[%clk 0:01:59.1]} 16. cxd5 {[%clk 0:02:29.4]} 16... exd5 {[%clk
0:01:54.9]} 17. d4 {[%clk 0:02:24]} 17... Nxf3+ {[%clk 0:01:53.3]} 18. Bxf3
{[%clk 0:02:23.6]} 18... c4 {[%clk 0:01:46.7]} 19. bxc4 {[%clk 0:02:16.6]} 19...
dxc4 {[%clk 0:01:46.3]} 20. Bxb7 {[%clk 0:02:14.7]} 20... Qxb7 {[%clk
0:01:47.2]} 21. Bc3 {[%clk 0:02:14]} 21... Rfe8 {[%clk 0:01:43.1]} 22. Rfe1
{[%clk 0:02:11.2]} 22... Qe7 {[%clk 0:00:45.7]} 23. a4 {[%clk 0:02:08.8]} 23...
Qd7 {[%clk 0:00:42.5]} 24. Qb5 {[%clk 0:02:04.5]} 24... Qd8 {[%clk 0:00:29.1]}
25. Bb4 {[%clk 0:01:47.6]} 25... Qc7 {[%clk 0:00:21.6]} 26. d5 {[%clk
0:01:37.2]} 26... c3 {[%clk 0:00:19]} 27. d6 {[%clk 0:01:36.5]} 27... Qc6 {[%clk
0:00:14.1]} 28. d7 {[%clk 0:01:35]} 1-0

[Event "*** SCC Grand Prix: Titled Tuesday Blitz"]
[Site "Chess.com"]
[Date "2020.07.21"]
[Round "8"]
[White "VladaSviridova"]
[Black "Klaus1995"]
[Result "1-0"]
[WhiteElo "2125"]
[BlackElo "1895"]
[TimeControl "180+1"]
[EndTime "11:34:14 PDT"]
[Termination "VladaSviridova won by resignation"]

1. d4 {[%clk 0:03:00.1]} 1... Nf6 {[%clk 0:02:59.1]} 2. c4 {[%clk 0:03:00.1]}
2... e6 {[%clk 0:02:53.4]} 3. Nf3 {[%clk 0:03:00.3]} 3... c5 {[%clk 0:02:53.8]}
4. d5 {[%clk 0:03:00]} 4... exd5 {[%clk 0:02:54.7]} 5. cxd5 {[%clk 0:03:00.4]}
5... d6 {[%clk 0:02:55.6]} 6. Nc3 {[%clk 0:03:00.4]} 6... g6 {[%clk 0:02:56.5]}
7. h3 {[%clk 0:02:59.2]} 7... Bg7 {[%clk 0:02:57]} 8. e4 {[%clk 0:02:59.4]} 8...
O-O {[%clk 0:02:57.1]} 9. Bd3 {[%clk 0:02:59.5]} 9... a6 {[%clk 0:02:56.8]} 10.
a4 {[%clk 0:02:59.2]} 10... Re8 {[%clk 0:02:57.2]} 11. O-O {[%clk 0:02:59.1]}
11... Nbd7 {[%clk 0:02:55.6]} 12. Bf4 {[%clk 0:02:57.6]} 12... Qc7 {[%clk
0:02:55.8]} 13. Re1 {[%clk 0:02:54.7]} 13... b6 {[%clk 0:02:53.3]} 14. Rc1
{[%clk 0:02:37.2]} 14... Rb8 {[%clk 0:02:52.8]} 15. Bh2 {[%clk 0:02:26.6]} 15...
c4 {[%clk 0:02:51.8]} 16. Bf1 {[%clk 0:02:18.9]} 16... b5 {[%clk 0:02:52]} 17.
e5 {[%clk 0:01:55.8]} 17... dxe5 {[%clk 0:02:48.3]} 18. d6 {[%clk 0:01:48.8]}
18... Qc5 {[%clk 0:02:46]} 19. Ng5 {[%clk 0:01:31.9]} 19... Bb7 {[%clk
0:02:12.5]} 20. axb5 {[%clk 0:01:28.3]} 20... axb5 {[%clk 0:02:11.9]} 21. Nge4
{[%clk 0:01:19.6]} 21... Nxe4 {[%clk 0:02:09.8]} 22. Nxe4 {[%clk 0:01:19.6]}
22... Bxe4 {[%clk 0:02:09.5]} 23. Rxe4 {[%clk 0:01:19.6]} 23... Nf6 {[%clk
0:02:02.2]} 24. Re2 {[%clk 0:00:46.5]} 24... Rbd8 {[%clk 0:01:57.5]} 25. Qe1
{[%clk 0:00:42.9]} 25... Rxd6 {[%clk 0:01:44.7]} 26. b4 {[%clk 0:00:35.9]} 26...
Qd4 {[%clk 0:01:28]} 27. Bxe5 {[%clk 0:00:32]} 27... Qd5 {[%clk 0:01:03.2]} 28.
Bxd6 {[%clk 0:00:28.9]} 28... Qxd6 {[%clk 0:01:03.6]} 29. Rxe8+ {[%clk
0:00:28.2]} 1-0

[Event "*** SCC Grand Prix: Titled Tuesday Blitz"]
[Site "Chess.com"]
[Date "2020.07.21"]
[Round "8"]
[White "Larina_Marija"]
[Black "Sn00pPawn"]
[Result "1-0"]
[WhiteElo "2105"]
[BlackElo "1790"]
[TimeControl "180+1"]
[EndTime "11:34:16 PDT"]
[Termination "Larina_Marija won on time"]

1. e4 {[%clk 0:03:00]} 1... c5 {[%clk 0:02:54.1]} 2. Nc3 {[%clk 0:02:58.7]} 2...
g6 {[%clk 0:02:52.7]} 3. g3 {[%clk 0:02:58.3]} 3... Bg7 {[%clk 0:02:52.2]} 4.
Bg2 {[%clk 0:02:58.8]} 4... Nc6 {[%clk 0:02:50.9]} 5. d3 {[%clk 0:02:58.4]} 5...
e6 {[%clk 0:02:47.9]} 6. Be3 {[%clk 0:02:58.3]} 6... Nd4 {[%clk 0:02:46.6]} 7.
Qd2 {[%clk 0:02:54]} 7... Ne7 {[%clk 0:02:47.5]} 8. Nd1 {[%clk 0:02:51.7]} 8...
d6 {[%clk 0:02:23.2]} 9. c3 {[%clk 0:02:51.4]} 9... Ndc6 {[%clk 0:02:22.9]} 10.
Bh6 {[%clk 0:02:51.4]} 10... Bf6 {[%clk 0:02:03.6]} 11. h4 {[%clk 0:02:41.4]}
11... Ng8 {[%clk 0:01:50.1]} 12. Be3 {[%clk 0:02:40]} 12... e5 {[%clk
0:01:30.2]} 13. Ne2 {[%clk 0:02:35.4]} 13... h5 {[%clk 0:01:23.1]} 14. d4 {[%clk
0:02:34.9]} 14... cxd4 {[%clk 0:01:02.4]} 15. cxd4 {[%clk 0:02:33.5]} 15... exd4
{[%clk 0:01:01.5]} 16. Nxd4 {[%clk 0:02:33.5]} 16... Nge7 {[%clk 0:00:54.9]} 17.
O-O {[%clk 0:02:31]} 17... O-O {[%clk 0:00:20.2]} 18. Nb5 {[%clk 0:02:23.1]}
18... Ne5 {[%clk 0:00:11.4]} 19. Nxd6 {[%clk 0:02:17.3]} 19... Bg7 {[%clk
0:00:03.9]} 20. Nc3 {[%clk 0:02:06.8]} 20... Ng4 {[%clk 0:00:03.7]} 21. Bf4
{[%clk 0:01:40.6]} 21... Nc6 {[%clk 0:00:02.5]} 22. Rad1 {[%clk 0:01:34]} 22...
Be6 {[%clk 0:00:02.2]} 23. Nd5 {[%clk 0:01:13.6]} 1-0

[Event "*** SCC Grand Prix: Titled Tuesday Blitz"]
[Site "Chess.com"]
[Date "2020.07.21"]
[Round "8"]
[White "KaspMagAlpha"]
[Black "MIJUAREZ"]
[Result "0-1"]
[WhiteElo "2229"]
[BlackElo "2394"]
[TimeControl "180+1"]
[EndTime "11:34:19 PDT"]
[Termination "MIJUAREZ won by checkmate"]

1. d4 {[%clk 0:03:00.9]} 1... Nf6 {[%clk 0:02:55.6]} 2. c4 {[%clk 0:03:00.3]}
2... c6 {[%clk 0:02:55.2]} 3. Nf3 {[%clk 0:02:59.7]} 3... d5 {[%clk 0:02:55.6]}
4. e3 {[%clk 0:02:59.8]} 4... a6 {[%clk 0:02:55.3]} 5. Be2 {[%clk 0:02:59.5]}
5... Bg4 {[%clk 0:02:54.8]} 6. b3 {[%clk 0:02:57]} 6... e6 {[%clk 0:02:54.8]} 7.
O-O {[%clk 0:02:56.5]} 7... Nbd7 {[%clk 0:02:55.2]} 8. h3 {[%clk 0:02:54.6]}
8... Bh5 {[%clk 0:02:53.8]} 9. Bb2 {[%clk 0:02:50.5]} 9... Be7 {[%clk
0:02:50.9]} 10. Ne5 {[%clk 0:02:49.1]} 10... Bg6 {[%clk 0:02:45.8]} 11. Nxg6
{[%clk 0:02:40.2]} 11... hxg6 {[%clk 0:02:45.2]} 12. Nc3 {[%clk 0:02:37.6]}
12... O-O {[%clk 0:02:42.6]} 13. f3 {[%clk 0:02:32.9]} 13... b5 {[%clk
0:02:40.2]} 14. e4 {[%clk 0:02:31]} 14... dxe4 {[%clk 0:02:29.7]} 15. Nxe4
{[%clk 0:02:29.8]} 15... bxc4 {[%clk 0:02:21.7]} 16. Bxc4 {[%clk 0:02:25.5]}
16... Nb6 {[%clk 0:02:14.9]} 17. Qe2 {[%clk 0:02:13.7]} 17... Rb8 {[%clk
0:02:07]} 18. Bxa6 {[%clk 0:02:10.5]} 18... Nbd5 {[%clk 0:02:05.1]} 19. Bc4
{[%clk 0:02:02.6]} 19... Nh5 {[%clk 0:02:00.5]} 20. Rad1 {[%clk 0:01:35.1]}
20... Ndf4 {[%clk 0:01:43.2]} 21. Qe3 {[%clk 0:01:22]} 21... Kh8 {[%clk
0:01:38.4]} 22. g4 {[%clk 0:01:19.4]} 22... Nxh3+ {[%clk 0:01:35.3]} 23. Kh1
{[%clk 0:01:00.9]} 23... N5f4 {[%clk 0:01:26]} 24. Rfe1 {[%clk 0:00:49.4]} 24...
Bb4 {[%clk 0:01:25.1]} 25. Rf1 {[%clk 0:00:45.2]} 25... Qh4 {[%clk 0:01:24.1]}
26. Rc1 {[%clk 0:00:06.7]} 26... Nf2+ {[%clk 0:01:15.9]} 27. Kg1 {[%clk
0:00:04.8]} 27... Qh1+ {[%clk 0:01:14.4]} 28. Kxf2 {[%clk 0:00:04.7]} 28... Qg2#
{[%clk 0:01:14.3]} 0-1

[Event "*** SCC Grand Prix: Titled Tuesday Blitz"]
[Site "Chess.com"]
[Date "2020.07.21"]
[Round "8"]
[White "londonkid"]
[Black "GMJustin"]
[Result "1-0"]
[WhiteElo "2418"]
[BlackElo "2299"]
[TimeControl "180+1"]
[EndTime "11:34:21 PDT"]
[Termination "londonkid won on time"]

1. d4 {[%clk 0:03:00.9]} 1... f5 {[%clk 0:02:54.5]} 2. Nc3 {[%clk 0:02:59.9]}
2... Nf6 {[%clk 0:02:52.1]} 3. Bg5 {[%clk 0:02:59.6]} 3... d5 {[%clk 0:02:50.4]}
4. Bxf6 {[%clk 0:02:59.6]} 4... exf6 {[%clk 0:02:50.2]} 5. e3 {[%clk 0:02:59.3]}
5... Be6 {[%clk 0:02:50]} 6. Bd3 {[%clk 0:02:59.4]} 6... Nc6 {[%clk 0:02:46.1]}
7. a3 {[%clk 0:02:59.5]} 7... Qd7 {[%clk 0:02:29.7]} 8. Nge2 {[%clk 0:02:59.4]}
8... g5 {[%clk 0:02:28.7]} 9. Na4 {[%clk 0:02:58.6]} 9... b6 {[%clk 0:01:51.3]}
10. Rc1 {[%clk 0:02:47.8]} 10... Na5 {[%clk 0:01:38.2]} 11. Nac3 {[%clk
0:02:37.5]} 11... c6 {[%clk 0:01:13.2]} 12. b4 {[%clk 0:02:18.7]} 12... Nc4
{[%clk 0:01:10.2]} 13. Bxc4 {[%clk 0:02:18.8]} 13... dxc4 {[%clk 0:01:09.6]} 14.
O-O {[%clk 0:02:18.5]} 14... Bd6 {[%clk 0:00:52.8]} 15. b5 {[%clk 0:02:17.2]}
15... cxb5 {[%clk 0:00:42.8]} 16. d5 {[%clk 0:02:17.3]} 16... Bf7 {[%clk
0:00:42.3]} 17. Nd4 {[%clk 0:02:14.3]} 17... Bxa3 {[%clk 0:00:32.8]} 18. Rb1
{[%clk 0:02:13.8]} 18... a6 {[%clk 0:00:31.1]} 19. Qf3 {[%clk 0:02:04.2]} 19...
f4 {[%clk 0:00:15.1]} 20. exf4 {[%clk 0:02:01.6]} 20... O-O {[%clk 0:00:15.3]}
21. f5 {[%clk 0:01:51]} 21... Bc5 {[%clk 0:00:11.2]} 22. Ne6 {[%clk 0:01:49.7]}
22... Rfe8 {[%clk 0:00:11.5]} 23. Ne4 {[%clk 0:01:45.5]} 23... Be7 {[%clk
0:00:10.7]} 24. d6 {[%clk 0:01:40.4]} 24... Bd8 {[%clk 0:00:10.5]} 25. N4xg5
{[%clk 0:01:34.8]} 25... fxg5 {[%clk 0:00:09.3]} 26. Qxa8 {[%clk 0:01:34.6]}
26... Be7 {[%clk 0:00:07.7]} 27. Qxa6 {[%clk 0:01:29.4]} 27... Bxd6 {[%clk
0:00:07.8]} 28. Qxb5 {[%clk 0:01:24.5]} 28... Qxb5 {[%clk 0:00:01.5]} 29. Rxb5
{[%clk 0:01:23.7]} 29... Bxe6 {[%clk 0:00:01.5]} 30. fxe6 {[%clk 0:01:24.4]} 1-0

[Event "*** SCC Grand Prix: Titled Tuesday Blitz"]
[Site "Chess.com"]
[Date "2020.07.21"]
[Round "8"]
[White "ajdemipopushi"]
[Black "RodinMihail"]
[Result "0-1"]
[WhiteElo "2341"]
[BlackElo "2479"]
[TimeControl "180+1"]
[EndTime "11:34:24 PDT"]
[Termination "RodinMihail won on time"]

1. Nf3 {[%clk 0:03:00.9]} 1... d5 {[%clk 0:02:59.6]} 2. g3 {[%clk 0:03:01.1]}
2... c6 {[%clk 0:02:59.4]} 3. c4 {[%clk 0:03:01]} 3... e6 {[%clk 0:02:59]} 4.
Bg2 {[%clk 0:03:00.8]} 4... Nf6 {[%clk 0:02:59.6]} 5. O-O {[%clk 0:03:00.6]}
5... dxc4 {[%clk 0:02:59.9]} 6. Qc2 {[%clk 0:02:30.7]} 6... b5 {[%clk
0:02:57.6]} 7. a4 {[%clk 0:02:22.7]} 7... Bb7 {[%clk 0:02:57.6]} 8. b3 {[%clk
0:02:18.7]} 8... cxb3 {[%clk 0:02:56.7]} 9. Qxb3 {[%clk 0:02:19]} 9... a6 {[%clk
0:02:57.4]} 10. d4 {[%clk 0:02:17]} 10... Be7 {[%clk 0:02:55.9]} 11. Rd1 {[%clk
0:02:13]} 11... O-O {[%clk 0:02:54.1]} 12. Nc3 {[%clk 0:02:12]} 12... Nbd7
{[%clk 0:02:53.4]} 13. e4 {[%clk 0:01:55.6]} 13... b4 {[%clk 0:02:48]} 14. a5
{[%clk 0:01:09]} 14... Qc8 {[%clk 0:02:35.3]} 15. e5 {[%clk 0:01:07.1]} 15...
Nd5 {[%clk 0:02:31.5]} 16. Ne4 {[%clk 0:01:05.2]} 16... c5 {[%clk 0:02:31.2]}
17. Nd6 {[%clk 0:00:22.7]} 17... Bxd6 {[%clk 0:02:28.8]} 18. exd6 {[%clk
0:00:23]} 18... c4 {[%clk 0:02:29]} 19. Qc2 {[%clk 0:00:19.3]} 19... h6 {[%clk
0:01:56.9]} 20. Ne5 {[%clk 0:00:15.3]} 20... Nc3 {[%clk 0:01:45.7]} 21. Re1
{[%clk 0:00:06]} 21... Bxg2 {[%clk 0:01:43.3]} 22. Kxg2 {[%clk 0:00:05.9]} 22...
Rd8 {[%clk 0:01:38]} 23. Bb2 {[%clk 0:00:04.1]} 23... Nf6 {[%clk 0:01:08.3]} 24.
Bxc3 {[%clk 0:00:02.8]} 24... bxc3 {[%clk 0:01:08.7]} 0-1

[Event "*** SCC Grand Prix: Titled Tuesday Blitz"]
[Site "Chess.com"]
[Date "2020.07.21"]
[Round "8"]
[White "VALPARAISO37"]
[Black "51616516516"]
[Result "1-0"]
[WhiteElo "2288"]
[BlackElo "2394"]
[TimeControl "180+1"]
[EndTime "11:34:26 PDT"]
[Termination "VALPARAISO37 won on time"]

1. d4 {[%clk 0:03:00.9]} 1... Nf6 {[%clk 0:02:53.1]} 2. c4 {[%clk 0:02:55.8]}
2... e6 {[%clk 0:02:52.9]} 3. Nc3 {[%clk 0:02:55.5]} 3... Bb4 {[%clk 0:02:52.9]}
4. a3 {[%clk 0:02:54.1]} 4... Bxc3+ {[%clk 0:02:52.2]} 5. bxc3 {[%clk
0:02:54.7]} 5... b6 {[%clk 0:02:46.5]} 6. e3 {[%clk 0:02:54]} 6... Nc6 {[%clk
0:02:40.8]} 7. Bd3 {[%clk 0:02:53.3]} 7... Ba6 {[%clk 0:01:38.4]} 8. e4 {[%clk
0:02:51.4]} 8... e5 {[%clk 0:01:31.8]} 9. Nf3 {[%clk 0:02:46.6]} 9... O-O {[%clk
0:01:26.2]} 10. O-O {[%clk 0:02:46.6]} 10... d6 {[%clk 0:01:21.5]} 11. Bg5
{[%clk 0:02:42.1]} 11... h6 {[%clk 0:01:20.7]} 12. Be3 {[%clk 0:02:35.8]} 12...
Re8 {[%clk 0:01:16.5]} 13. Nd2 {[%clk 0:02:34.1]} 13... Qd7 {[%clk 0:01:09.5]}
14. h3 {[%clk 0:02:32.3]} 14... Na5 {[%clk 0:00:52.6]} 15. a4 {[%clk 0:02:27.1]}
15... c5 {[%clk 0:00:48.7]} 16. d5 {[%clk 0:02:25.9]} 16... Nh7 {[%clk
0:00:35.6]} 17. Qh5 {[%clk 0:02:23]} 17... f6 {[%clk 0:00:27]} 18. Kh2 {[%clk
0:02:16.5]} 18... Qf7 {[%clk 0:00:26.9]} 19. Qg4 {[%clk 0:02:15.8]} 19... h5
{[%clk 0:00:24.2]} 20. Qg3 {[%clk 0:02:14.7]} 20... Bc8 {[%clk 0:00:20.8]} 21.
f4 {[%clk 0:02:14.6]} 21... Bd7 {[%clk 0:00:12.7]} 22. Rf2 {[%clk 0:02:11.1]}
22... Qe7 {[%clk 0:00:11.9]} 23. Bc2 {[%clk 0:02:02.2]} 23... Rad8 {[%clk
0:00:05.9]} 24. Raf1 {[%clk 0:02:00.8]} 24... Bc8 {[%clk 0:00:06.2]} 25. fxe5
{[%clk 0:01:49.7]} 25... Qxe5 {[%clk 0:00:05.7]} 26. Bf4 {[%clk 0:01:50.1]}
26... Qe7 {[%clk 0:00:04.2]} 27. Kh1 {[%clk 0:01:46.9]} 27... Ng5 {[%clk
0:00:04.1]} 28. Qh4 {[%clk 0:01:38.7]} 28... Nf7 {[%clk 0:00:02.1]} 29. Qxh5
{[%clk 0:01:37.7]} 29... Ne5 {[%clk 0:00:02.2]} 30. Kh2 {[%clk 0:01:27.7]} 30...
Nexc4 {[%clk 0:00:01.6]} 31. e5 {[%clk 0:01:27.1]} 1-0

[Event "*** SCC Grand Prix: Titled Tuesday Blitz"]
[Site "Chess.com"]
[Date "2020.07.21"]
[Round "8"]
[White "ChristianAlm"]
[Black "zaur-mammadov"]
[Result "0-1"]
[WhiteElo "2534"]
[BlackElo "2673"]
[TimeControl "180+1"]
[EndTime "11:34:35 PDT"]
[Termination "zaur-mammadov won by resignation"]

1. d4 {[%clk 0:02:59.9]} 1... d5 {[%clk 0:02:59.7]} 2. Bf4 {[%clk 0:02:58.9]}
2... Nf6 {[%clk 0:02:59]} 3. e3 {[%clk 0:02:58.7]} 3... c5 {[%clk 0:02:59.4]} 4.
Nf3 {[%clk 0:02:57.9]} 4... cxd4 {[%clk 0:02:59.7]} 5. exd4 {[%clk 0:02:57.9]}
5... Nc6 {[%clk 0:03:00.2]} 6. Nc3 {[%clk 0:02:57.5]} 6... a6 {[%clk 0:02:55.9]}
7. Be2 {[%clk 0:02:55.4]} 7... g6 {[%clk 0:02:55.9]} 8. O-O {[%clk 0:02:54.7]}
8... Bg7 {[%clk 0:02:55.6]} 9. Ne5 {[%clk 0:02:54.3]} 9... O-O {[%clk
0:02:55.1]} 10. Nxc6 {[%clk 0:02:53.9]} 10... bxc6 {[%clk 0:02:55.4]} 11. Be5
{[%clk 0:02:54.3]} 11... Bh6 {[%clk 0:02:52.4]} 12. Na4 {[%clk 0:02:48.9]} 12...
Nd7 {[%clk 0:02:50.5]} 13. Bg3 {[%clk 0:02:45.9]} 13... f6 {[%clk 0:02:47.8]}
14. Re1 {[%clk 0:02:26.2]} 14... e5 {[%clk 0:02:42.1]} 15. dxe5 {[%clk
0:02:08.1]} 15... fxe5 {[%clk 0:02:41.4]} 16. Bg4 {[%clk 0:01:56.1]} 16... e4
{[%clk 0:02:37.2]} 17. Be6+ {[%clk 0:01:44.2]} 17... Kh8 {[%clk 0:02:35.7]} 18.
c4 {[%clk 0:01:39.6]} 18... Nf6 {[%clk 0:02:34]} 19. cxd5 {[%clk 0:01:31.7]}
19... cxd5 {[%clk 0:02:33]} 20. Nc5 {[%clk 0:01:22.6]} 20... Qe7 {[%clk
0:02:29.5]} 21. Bxd5 {[%clk 0:00:59.8]} 21... Rd8 {[%clk 0:02:24.6]} 22. Bxa8
{[%clk 0:00:53.5]} 22... Rxd1 {[%clk 0:02:21.6]} 23. Rexd1 {[%clk 0:00:53.4]}
23... Qxc5 {[%clk 0:02:20.4]} 24. Rd8+ {[%clk 0:00:19.7]} 24... Kg7 {[%clk
0:02:19.1]} 25. Bd6 {[%clk 0:00:19]} 25... Qc2 {[%clk 0:02:15.2]} 26. Bf8+
{[%clk 0:00:15.6]} 26... Kf7 {[%clk 0:02:14.5]} 27. Bxh6 {[%clk 0:00:15.2]}
27... Ng4 {[%clk 0:02:12.8]} 28. Be3 {[%clk 0:00:15]} 28... Qxb2 {[%clk
0:01:57.8]} 29. Rad1 {[%clk 0:00:13]} 29... Nxe3 {[%clk 0:01:51.8]} 30. fxe3
{[%clk 0:00:13.9]} 30... Bg4 {[%clk 0:01:50]} 31. Rf1+ {[%clk 0:00:12.6]} 31...
Ke7 {[%clk 0:01:49.6]} 32. Rd4 {[%clk 0:00:11.6]} 32... Bf5 {[%clk 0:01:44.6]}
33. g4 {[%clk 0:00:11.3]} 33... Qe2 {[%clk 0:01:43.5]} 34. Rf2 {[%clk
0:00:03.8]} 34... Qxg4+ {[%clk 0:01:38.2]} 35. Kf1 {[%clk 0:00:02]} 35... Qh3+
{[%clk 0:01:36.7]} 36. Ke1 {[%clk 0:00:02]} 36... Qxe3+ {[%clk 0:01:35.9]} 0-1

[Event "*** SCC Grand Prix: Titled Tuesday Blitz"]
[Site "Chess.com"]
[Date "2020.07.21"]
[Round "8"]
[White "Lagmantr"]
[Black "nrvisakh"]
[Result "0-1"]
[WhiteElo "2641"]
[BlackElo "2835"]
[TimeControl "180+1"]
[EndTime "11:34:38 PDT"]
[Termination "nrvisakh won by resignation"]

1. e4 {[%clk 0:03:00.9]} 1... c6 {[%clk 0:02:58.7]} 2. d4 {[%clk 0:03:00.1]}
2... d5 {[%clk 0:02:58.8]} 3. Nc3 {[%clk 0:03:01]} 3... dxe4 {[%clk 0:02:58.2]}
4. Nxe4 {[%clk 0:03:01.9]} 4... Bf5 {[%clk 0:02:56.9]} 5. Ng3 {[%clk 0:02:58.8]}
5... Bg6 {[%clk 0:02:56.6]} 6. Bc4 {[%clk 0:02:59]} 6... e6 {[%clk 0:02:53.3]}
7. N1e2 {[%clk 0:02:58.9]} 7... Nf6 {[%clk 0:02:24.6]} 8. O-O {[%clk 0:02:40.1]}
8... Bd6 {[%clk 0:02:21.3]} 9. f4 {[%clk 0:01:27.7]} 9... O-O {[%clk 0:01:55.9]}
10. f5 {[%clk 0:01:23.4]} 10... exf5 {[%clk 0:01:56.6]} 11. Nxf5 {[%clk
0:01:23.8]} 11... Bc7 {[%clk 0:01:56.7]} 12. Bg5 {[%clk 0:01:20.8]} 12... Nbd7
{[%clk 0:01:45.1]} 13. Neg3 {[%clk 0:01:17.7]} 13... Bxg3 {[%clk 0:01:42.4]} 14.
hxg3 {[%clk 0:01:10.5]} 14... Bxf5 {[%clk 0:01:32.1]} 15. Rxf5 {[%clk
0:01:11.4]} 15... Qb6 {[%clk 0:01:32.3]} 16. b3 {[%clk 0:00:40.8]} 16... Rae8
{[%clk 0:01:30.5]} 17. c3 {[%clk 0:00:28.9]} 17... Ne4 {[%clk 0:01:26]} 18. Qf3
{[%clk 0:00:27.8]} 18... Nd6 {[%clk 0:01:22.9]} 19. Bd3 {[%clk 0:00:27.5]} 19...
Ne5 {[%clk 0:01:08.5]} 20. Rxe5 {[%clk 0:00:15.3]} 20... Rxe5 {[%clk 0:01:09.4]}
21. Bf4 {[%clk 0:00:10.1]} 21... Re6 {[%clk 0:01:09.6]} 22. Rf1 {[%clk
0:00:09.2]} 22... g6 {[%clk 0:00:56.9]} 23. Be5 {[%clk 0:00:08.7]} 23... Rxe5
{[%clk 0:00:54.2]} 0-1